Workbook

Sheet Results13of18
B1: WALLASEY ATHLETIC CLUB GRAND PRIX 2024-2025 | E1: MT Royden Park 03/09/24 | F1: MT WCP 10/09/24 | G1: National Weston Park 14/09/24 | H1: MT Wallasey 17/09/24 | I1: MT Arrowe Park 24/09/24 | J1: BL 1 Norton Priory 29/09/24 | K1: LD Race 1 Sherdley Park 26/10/24 | L1: BL 2 Tattenhall 03/11/24 | M1: L&D Race 2 Sefton Park 23/11/24 | N1: Merseyside CC Arrowe Park 14/12/24 | O1: Northern CC Tatton Park 25/01/25 | P1: BL 3 Connah's Quay 26/01/25 | Q1: L&D Champs Clarke's Garden 02/02/25 | R1: National Parliament Hill 22/02/25 | S1: LD Race 2 Beacon Park 01/03/25 | T1: BL 5 Capenhurst 16/03/25 | U1: BL 6 Mold 06/04/25 | V1: Total
A2: MEN | B2: Division 1 | C2: 1 | D2: PEARSE, Rob | E2: 29 | F2: 29 | G2: 0 | H2: 29 | I2: 29 | J2: 29 | K2: 30 | L2: 28 | M2: 28 | N2: 28 | O2: 0 | P2: 30 | Q2: 30 | R2: 0 | S2: 0 | T2: 26 | U2: 29 | V2: =VLOOKUP(D2,SortBest!A:T,20,FALSE) -> 348
C3: 2 | D3: POUSTIE, Mark | E3: 26 | F3: 25 | G3: 0 | H3: 25 | I3: 26 | J3: 26 | K3: 29 | L3: 23 | M3: 27 | N3: 27 | O3: 29 | P3: 0 | Q3: 28 | R3: 30 | S3: 0 | T3: 24 | U3: 25 | V3: =VLOOKUP(D3,SortBest!A:T,20,FALSE) -> 323
C4: 3 | D4: BARBAT, Tony | E4: 24 | F4: 0 | G4: 0 | H4: 0 | I4: 23 | J4: 25 | K4: 27 | L4: 24 | M4: 26 | N4: 24 | O4: 28 | P4: 26 | Q4: 27 | R4: 29 | S4: 29 | T4: 23 | U4: 26 | V4: =VLOOKUP(D4,SortBest!A:T,20,FALSE) -> 315
C5: 4 | D5: KENNEDY, Alan | E5: 30 | F5: 0 | G5: 0 | H5: 28 | I5: 27 | J5: 28 | K5: 0 | L5: 27 | M5: 29 | N5: 29 | O5: 30 | P5: 29 | Q5: 0 | R5: 0 | S5: 0 | T5: 27 | U5: 27 | V5: =VLOOKUP(D5,SortBest!A:T,20,FALSE) -> 311
C6: 5 | D6: EVES, Scott | E6: 28 | F6: 28 | G6: 0 | H6: 27 | I6: 28 | J6: 27 | K6: 0 | L6: 26 | M6: 0 | N6: 26 | O6: 0 | P6: 27 | Q6: 29 | R6: 0 | S6: 0 | T6: 25 | U6: 28 | V6: =VLOOKUP(D6,SortBest!A:T,20,FALSE) -> 299
C7: 6 | D7: WOODS, Sam | E7: 25 | F7: 24 | G7: 0 | H7: 0 | I7: 24 | J7: 24 | K7: 28 | L7: 25 | M7: 0 | N7: 25 | O7: 0 | P7: 25 | Q7: 0 | R7: 0 | S7: 30 | T7: 20 | U7: 0 | V7: =VLOOKUP(D7,SortBest!A:T,20,FALSE) -> 250
C8: 7 | D8: BARHAM, Pete | E8: 21 | F8: 22 | G8: 0 | H8: 23 | I8: 20 | J8: 21 | K8: 0 | L8: 21 | M8: 0 | N8: 23 | O8: 0 | P8: 24 | Q8: 26 | R8: 0 | S8: 0 | T8: 21 | U8: 23 | V8: =VLOOKUP(D8,SortBest!A:T,20,FALSE) -> 245
C9: 8 | D9: MCALISTER, Dave | E9: 0 | F9: 0 | G9: 0 | H9: 22 | I9: 0 | J9: 19 | K9: 26 | L9: 19 | M9: 25 | N9: 21 | O9: 0 | P9: 22 | Q9: 25 | R9: 0 | S9: 0 | T9: 18 | U9: 22 | V9: =VLOOKUP(D9,SortBest!A:T,20,FALSE) -> 219
C10: 9 | D10: WHITWORTH, Rab | E10: 23 | F10: 23 | G10: 0 | H10: 24 | I10: 21 | J10: 22 | K10: 0 | L10: 22 | M10: 0 | N10: 0 | O10: 0 | P10: 0 | Q10: 0 | R10: 0 | S10: 0 | T10: 22 | U10: 24 | V10: =VLOOKUP(D10,SortBest!A:T,20,FALSE) -> 181
C11: 10 | D11: CHADWICK, Oliver | E11: 0 | F11: 0 | G11: 0 | H11: 0 | I11: 30 | J11: 30 | K11: 0 | L11: 30 | M11: 0 | N11: 30 | O11: 0 | P11: 0 | Q11: 0 | R11: 0 | S11: 0 | T11: 30 | U11: 0 | V11: =VLOOKUP(D11,SortBest!A:T,20,FALSE) -> 150
C12: 11 | D12: POLAND, Jack | E12: 0 | F12: 30 | G12: 0 | H12: 30 | I12: 0 | J12: 0 | K12: 0 | L12: 29 | M12: 30 | N12: 0 | O12: 0 | P12: 0 | Q12: 0 | R12: 0 | S12: 0 | T12: 29 | U12: 0 | V12: =VLOOKUP(D12,SortBest!A:T,20,FALSE) -> 148
C13: 12 | D13: NORTON, Steve | E13: 22 | F13: 21 | G13: 0 | H13: 0 | I13: 19 | J13: 20 | K13: 0 | L13: 20 | M13: 0 | N13: 0 | O13: 0 | P13: 23 | Q13: 0 | R13: 0 | S13: 0 | T13: 19 | U13: 0 | V13: =VLOOKUP(D13,SortBest!A:T,20,FALSE) -> 144
C14: 13 | D14: DABNER, Phil | E14: 27 | F14: 26 | G14: 0 | H14: 26 | I14: 25 | J14: 0 | K14: 0 | L14: 0 | M14: 0 | N14: 0 | O14: 0 | P14: 0 | Q14: 0 | R14: 0 | S14: 0 | T14: 0 | U14: 0 | V14: =VLOOKUP(D14,SortBest!A:T,20,FALSE) -> 104
C15: 14 | D15: CUTHBERT, Phil | E15: 0 | F15: 0 | G15: 0 | H15: 0 | I15: 22 | J15: 23 | K15: 0 | L15: 0 | M15: 0 | N15: 0 | O15: 27 | P15: 0 | Q15: 0 | R15: 28 | S15: 0 | T15: 0 | U15: 0 | V15: =VLOOKUP(D15,SortBest!A:T,20,FALSE) -> 100
C16: 15 | D16: BIRD, Phil | E16: 20 | F16: 0 | G16: 0 | H16: 21 | I16: 18 | J16: 0 | K16: 0 | L16: 0 | M16: 0 | N16: 22 | O16: 0 | P16: 0 | Q16: 0 | R16: 0 | S16: 0 | T16: 0 | U16: 0 | V16: =VLOOKUP(D16,SortBest!A:T,20,FALSE) -> 81
C17: 16 | D17: JONES, Christopher | E17: 0 | F17: 0 | G17: 0 | H17: 0 | I17: 0 | J17: 0 | K17: 0 | L17: 0 | M17: 0 | N17: 0 | O17: 0 | P17: 28 | Q17: 0 | R17: 0 | S17: 0 | T17: 0 | U17: 30 | V17: =VLOOKUP(D17,SortBest!A:T,20,FALSE) -> 58
C18: 17 | D18: MCARDLE, Connor | E18: 0 | F18: 0 | G18: 0 | H18: 0 | I18: 0 | J18: 0 | K18: 0 | L18: 0 | M18: 0 | N18: 0 | O18: 0 | P18: 0 | Q18: 0 | R18: 0 | S18: 0 | T18: 28 | U18: 0 | V18: =VLOOKUP(D18,SortBest!A:T,20,FALSE) -> 28
C19: 18 | D19: WATSON, Luke | E19: 0 | F19: 27 | G19: 0 | H19: 0 | I19: 0 | J19: 0 | K19: 0 | L19: 0 | M19: 0 | N19: 0 | O19: 0 | P19: 0 | Q19: 0 | R19: 0 | S19: 0 | T19: 0 | U19: 0 | V19: =VLOOKUP(D19,SortBest!A:T,20,FALSE) -> 27
B20: Division 2 | C20: 1 | D20: GILLIES, George | E20: 27 | F20: 29 | G20: 0 | H20: 28 | I20: 29 | J20: 27 | K20: 29 | L20: 24 | M20: 30 | N20: 30 | O20: 30 | P20: 28 | Q20: 30 | R20: 0 | S20: 30 | T20: 30 | U20: 29 | V20: =VLOOKUP(D20,SortBest!A:T,20,FALSE) -> 352
C21: 2 | D21: BOWERS, Chris | E21: 25 | F21: 28 | G21: 0 | H21: 27 | I21: 26 | J21: 24 | K21: 0 | L21: 22 | M21: 0 | N21: 29 | O21: 29 | P21: 0 | Q21: 0 | R21: 0 | S21: 0 | T21: 22 | U21: 22 | V21: =VLOOKUP(D21,SortBest!A:T,20,FALSE) -> 254
C22: 3 | D22: SEAL, Brian | E22: 21 | F22: 27 | G22: 0 | H22: 26 | I22: 24 | J22: 25 | K22: 0 | L22: 21 | M22: 0 | N22: 0 | O22: 0 | P22: 27 | Q22: 0 | R22: 0 | S22: 29 | T22: 24 | U22: 20 | V22: =VLOOKUP(D22,SortBest!A:T,20,FALSE) -> 244
C23: 4 | D23: FERRONI, Stephen | E23: 30 | F23: 30 | G23: 0 | H23: 30 | I23: 30 | J23: 30 | K23: 0 | L23: 30 | M23: 0 | N23: 0 | O23: 0 | P23: 30 | Q23: 0 | R23: 0 | S23: 0 | T23: 0 | U23: 30 | V23: =VLOOKUP(D23,SortBest!A:T,20,FALSE) -> 240
C24: 5 | D24: SALES, Sean | E24: 22 | F24: 26 | G24: 0 | H24: 0 | I24: 25 | J24: 0 | K24: 0 | L24: 19 | M24: 29 | N24: 0 | O24: 0 | P24: 24 | Q24: 27 | R24: 0 | S24: 0 | T24: 20 | U24: 19 | V24: =VLOOKUP(D24,SortBest!A:T,20,FALSE) -> 211
C25: 6 | D25: COLE, Steve | E25: 17 | F25: 21 | G25: 0 | H25: 22 | I25: 19 | J25: 23 | K25: 27 | L25: 18 | M25: 0 | N25: 0 | O25: 0 | P25: 23 | Q25: 0 | R25: 0 | S25: 0 | T25: 18 | U25: 17 | V25: =VLOOKUP(D25,SortBest!A:T,20,FALSE) -> 205
C26: 7 | D26: WARREN, Dominic | E26: 23 | F26: 23 | G26: 0 | H26: 25 | I26: 0 | J26: 0 | K26: 0 | L26: 20 | M26: 28 | N26: 0 | O26: 0 | P26: 26 | Q26: 28 | R26: 0 | S26: 0 | T26: 0 | U26: 0 | V26: =VLOOKUP(D26,SortBest!A:T,20,FALSE) -> 173
C27: 8 | D27: LESLIE, Steven | E27: 0 | F27: 0 | G27: 0 | H27: 29 | I27: 0 | J27: 28 | K27: 0 | L27: 26 | M27: 0 | N27: 0 | O27: 0 | P27: 29 | Q27: 0 | R27: 0 | S27: 0 | T27: 27 | U27: 26 | V27: =VLOOKUP(D27,SortBest!A:T,20,FALSE) -> 165
C28: 9 | D28: CUTHBERT, Patrick | E28: 20 | F28: 25 | G28: 0 | H28: 23 | I28: 27 | J28: 22 | K28: 0 | L28: 0 | M28: 0 | N28: 0 | O28: 0 | P28: 0 | Q28: 0 | R28: 0 | S28: 0 | T28: 23 | U28: 24 | V28: =VLOOKUP(D28,SortBest!A:T,20,FALSE) -> 164
C29: 10 | D29: JONES, Mike T | E29: 29 | F29: 0 | G29: 0 | H29: 0 | I29: 0 | J29: 0 | K29: 28 | L29: 25 | M29: 0 | N29: 0 | O29: 0 | P29: 0 | Q29: 29 | R29: 0 | S29: 0 | T29: 26 | U29: 25 | V29: =VLOOKUP(D29,SortBest!A:T,20,FALSE) -> 162
C30: 11 | D30: MCARDLE, Derek | E30: 15 | F30: 20 | G30: 0 | H30: 20 | I30: 23 | J30: 21 | K30: 0 | L30: 0 | M30: 0 | N30: 0 | O30: 0 | P30: 20 | Q30: 0 | R30: 0 | S30: 0 | T30: 17 | U30: 13 | V30: =VLOOKUP(D30,SortBest!A:T,20,FALSE) -> 149
C31: 12 | D31: PERRY, Robert | E31: 13 | F31: 14 | G31: 0 | H31: 0 | I31: 16 | J31: 0 | K31: 0 | L31: 11 | M31: 27 | N31: 28 | O31: 0 | P31: 15 | Q31: 0 | R31: 0 | S31: 0 | T31: 10 | U31: 0 | V31: =VLOOKUP(D31,SortBest!A:T,20,FALSE) -> 134
C32: 13 | D32: BACKINSELL, Jim | E32: 0 | F32: 0 | G32: 0 | H32: 19 | I32: 22 | J32: 20 | K32: 0 | L32: 17 | M32: 0 | N32: 0 | O32: 0 | P32: 22 | Q32: 0 | R32: 0 | S32: 0 | T32: 16 | U32: 15 | V32: =VLOOKUP(D32,SortBest!A:T,20,FALSE) -> 131
C33: 14 | D33: DOHERTY, Mark | E33: 10 | F33: 15 | G33: 30 | H33: 15 | I33: 17 | J33: 15 | K33: 0 | L33: 0 | M33: 0 | N33: 0 | O33: 0 | P33: 16 | Q33: 0 | R33: 0 | S33: 0 | T33: 0 | U33: 0 | V33: =VLOOKUP(D33,SortBest!A:T,20,FALSE) -> 118
C34: 15 | D34: GORMAN, Louis | E34: 0 | F34: 0 | G34: 0 | H34: 0 | I34: 0 | J34: 29 | K34: 0 | L34: 29 | M34: 0 | N34: 0 | O34: 0 | P34: 0 | Q34: 0 | R34: 0 | S34: 0 | T34: 28 | U34: 28 | V34: =VLOOKUP(D34,SortBest!A:T,20,FALSE) -> 114
C35: 16 | D35: HOLMES, Tony | E35: 0 | F35: 16 | G35: 0 | H35: 16 | I35: 18 | J35: 16 | K35: 0 | L35: 0 | M35: 0 | N35: 0 | O35: 0 | P35: 19 | Q35: 0 | R35: 0 | S35: 0 | T35: 12 | U35: 11 | V35: =VLOOKUP(D35,SortBest!A:T,20,FALSE) -> 108
C36: 17 | D36: CONNOLLY, Patrick | E36: 18 | F36: 19 | G36: 0 | H36: 17 | I36: 21 | J36: 18 | K36: 0 | L36: 13 | M36: 0 | N36: 0 | O36: 0 | P36: 0 | Q36: 0 | R36: 0 | S36: 0 | T36: 0 | U36: 0 | V36: =VLOOKUP(D36,SortBest!A:T,20,FALSE) -> 106
C37: 18 | D37: RAE, Nick | E37: 12 | F37: 12 | G37: 0 | H37: 13 | I37: 15 | J37: 14 | K37: 0 | L37: 10 | M37: 0 | N37: 0 | O37: 0 | P37: 0 | Q37: 0 | R37: 0 | S37: 0 | T37: 9 | U37: 10 | V37: =VLOOKUP(D37,SortBest!A:T,20,FALSE) -> 95
C38: 19 | D38: GIBBONS, Neil | E38: 14 | F38: 17 | G38: 0 | H38: 0 | I38: 20 | J38: 19 | K38: 0 | L38: 15 | M38: 0 | N38: 0 | O38: 0 | P38: 0 | Q38: 0 | R38: 0 | S38: 0 | T38: 0 | U38: 0 | V38: =VLOOKUP(D38,SortBest!A:T,20,FALSE) -> 85
C39: 20 | D39: GRIFFITHS, Paul | E39: 0 | F39: 0 | G39: 0 | H39: 0 | I39: 0 | J39: 0 | K39: 0 | L39: 16 | M39: 0 | N39: 0 | O39: 0 | P39: 25 | Q39: 0 | R39: 0 | S39: 0 | T39: 21 | U39: 21 | V39: =VLOOKUP(D39,SortBest!A:T,20,FALSE) -> 83
C40: 21 | D40: ROBSON, Michael | E40: 0 | F40: 0 | G40: 0 | H40: 0 | I40: 0 | J40: 26 | K40: 0 | L40: 23 | M40: 0 | N40: 0 | O40: 0 | P40: 0 | Q40: 0 | R40: 0 | S40: 0 | T40: 25 | U40: 0 | V40: =VLOOKUP(D40,SortBest!A:T,20,FALSE) -> 74
C41: 22 | D41: MCARDLE, Pete | E41: 0 | F41: 0 | G41: 0 | H41: 0 | I41: 0 | J41: 17 | K41: 0 | L41: 14 | M41: 0 | N41: 0 | O41: 0 | P41: 18 | Q41: 0 | R41: 0 | S41: 0 | T41: 11 | U41: 12 | V41: =VLOOKUP(D41,SortBest!A:T,20,FALSE) -> 72
C42: 23 | D42: ROUGHLEY, Andrew | E42: 24 | F42: 24 | G42: 0 | H42: 24 | I42: 0 | J42: 0 | K42: 0 | L42: 0 | M42: 0 | N42: 0 | O42: 0 | P42: 0 | Q42: 0 | R42: 0 | S42: 0 | T42: 0 | U42: 0 | V42: =VLOOKUP(D42,SortBest!A:T,20,FALSE) -> 72
C43: 24 | D43: WADE, David | E43: 16 | F43: 18 | G43: 0 | H43: 21 | I43: 0 | J43: 0 | K43: 0 | L43: 0 | M43: 0 | N43: 0 | O43: 0 | P43: 0 | Q43: 0 | R43: 0 | S43: 0 | T43: 14 | U43: 0 | V43: =VLOOKUP(D43,SortBest!A:T,20,FALSE) -> 69
C44: 25 | D44: HOARE, Daniel | E44: 0 | F44: 0 | G44: 0 | H44: 0 | I44: 0 | J44: 0 | K44: 0 | L44: 0 | M44: 0 | N44: 0 | O44: 0 | P44: 21 | Q44: 0 | R44: 0 | S44: 0 | T44: 19 | U44: 18 | V44: =VLOOKUP(D44,SortBest!A:T,20,FALSE) -> 58
C45: 26 | D45: WYNNE, Mark | E45: 0 | F45: 0 | G45: 0 | H45: 0 | I45: 0 | J45: 0 | K45: 0 | L45: 28 | M45: 0 | N45: 0 | O45: 0 | P45: 0 | Q45: 0 | R45: 0 | S45: 0 | T45: 29 | U45: 0 | V45: =VLOOKUP(D45,SortBest!A:T,20,FALSE) -> 57
C46: 27 | D46: ANDERSON, Daniel | E46: 0 | F46: 0 | G46: 0 | H46: 0 | I46: 0 | J46: 0 | K46: 30 | L46: 0 | M46: 0 | N46: 0 | O46: 0 | P46: 0 | Q46: 0 | R46: 0 | S46: 0 | T46: 0 | U46: 27 | V46: =VLOOKUP(D46,SortBest!A:T,20,FALSE) -> 57
C47: 28 | D47: ELLISON, John | E47: 28 | F47: 0 | G47: 0 | H47: 0 | I47: 0 | J47: 0 | K47: 0 | L47: 27 | M47: 0 | N47: 0 | O47: 0 | P47: 0 | Q47: 0 | R47: 0 | S47: 0 | T47: 0 | U47: 0 | V47: =VLOOKUP(D47,SortBest!A:T,20,FALSE) -> 55
C48: 29 | D48: HAMPSHIRE, William | E48: 26 | F48: 0 | G48: 0 | H48: 0 | I48: 28 | J48: 0 | K48: 0 | L48: 0 | M48: 0 | N48: 0 | O48: 0 | P48: 0 | Q48: 0 | R48: 0 | S48: 0 | T48: 0 | U48: 0 | V48: =VLOOKUP(D48,SortBest!A:T,20,FALSE) -> 54
C49: 30 | D49: STOCKER, Ken | E49: 11 | F49: 13 | G49: 0 | H49: 14 | I49: 0 | J49: 0 | K49: 0 | L49: 9 | M49: 0 | N49: 0 | O49: 0 | P49: 0 | Q49: 0 | R49: 0 | S49: 0 | T49: 0 | U49: 0 | V49: =VLOOKUP(D49,SortBest!A:T,20,FALSE) -> 47
C50: 31 | D50: SUMMERFIELD, Leon | E50: 0 | F50: 0 | G50: 0 | H50: 18 | I50: 0 | J50: 0 | K50: 0 | L50: 0 | M50: 0 | N50: 0 | O50: 0 | P50: 0 | Q50: 0 | R50: 0 | S50: 0 | T50: 15 | U50: 14 | V50: =VLOOKUP(D50,SortBest!A:T,20,FALSE) -> 47
C51: 32 | D51: HUGHES, Gareth | E51: 0 | F51: 0 | G51: 0 | H51: 0 | I51: 0 | J51: 0 | K51: 0 | L51: 12 | M51: 0 | N51: 0 | O51: 0 | P51: 17 | Q51: 0 | R51: 0 | S51: 0 | T51: 13 | U51: 0 | V51: =VLOOKUP(D51,SortBest!A:T,20,FALSE) -> 42
C52: 33 | D52: SAUNDERS, Paul | E52: 19 | F52: 22 | G52: 0 | H52: 0 | I52: 0 | J52: 0 | K52: 0 | L52: 0 | M52: 0 | N52: 0 | O52: 0 | P52: 0 | Q52: 0 | R52: 0 | S52: 0 | T52: 0 | U52: 0 | V52: =VLOOKUP(D52,SortBest!A:T,20,FALSE) -> 41
C53: 34 | D53: JOHNSTONE, Paul | E53: 0 | F53: 0 | G53: 0 | H53: 0 | I53: 0 | J53: 0 | K53: 0 | L53: 0 | M53: 0 | N53: 0 | O53: 0 | P53: 0 | Q53: 0 | R53: 0 | S53: 0 | T53: 0 | U53: 23 | V53: =VLOOKUP(D53,SortBest!A:T,20,FALSE) -> 23
C54: 35 | D54: FEELY, Michael | E54: 0 | F54: 0 | G54: 0 | H54: 0 | I54: 0 | J54: 0 | K54: 0 | L54: 0 | M54: 0 | N54: 0 | O54: 0 | P54: 0 | Q54: 0 | R54: 0 | S54: 0 | T54: 0 | U54: 16 | V54: =VLOOKUP(D54,SortBest!A:T,20,FALSE) -> 16
B55: WALLASEY ATHLETIC CLUB GRAND PRIX 2024-2025 | E55: MT Royden Park 03/09/24 | F55: MT WCP 10/09/24 | G55: National Weston Park 14/09/24 | H55: MT Wallasey 17/09/24 | I55: MT Arrowe Park 24/09/24 | J55: BL 1 Norton Priory 29/09/24 | K55: LD Race 1 Sherdley Park 26/10/24 | L55: BL 2 Tattenhall 03/11/24 | M55: L&D Race 2 Sefton Park 23/11/24 | N55: Merseyside CC Arrowe Park 14/12/24 | O55: Northern CC Tatton Park 25/01/25 | P55: BL 3 Connah's Quay 26/01/25 | Q55: L&D Champs Clarke's Garden 02/02/25 | R55: National Parliament Hill 22/02/25 | S55: LD Race 2 Beacon Park 01/03/25 | T55: BL 5 Capenhurst 16/03/25 | U55: BL 6 Mold 06/04/25 | V55: Total
A56: WOMEN | C56: 1 | D56: BLACKLOCK, Becky | E56: 30 | F56: 30 | G56: 30 | H56: 30 | I56: 30 | J56: 29 | K56: 0 | L56: 29 | M56: 30 | N56: 0 | O56: 0 | P56: 28 | Q56: 0 | R56: 0 | S56: 0 | T56: 29 | U56: 28 | V56: =VLOOKUP(D56,SortBest!A:T,20,FALSE) -> 323
C57: 2 | D57: KENNY, Anna | E57: 28 | F57: 29 | G57: 0 | H57: 28 | I57: 29 | J57: 28 | K57: 0 | L57: 28 | M57: 29 | N57: 29 | O57: 0 | P57: 29 | Q57: 30 | R57: 0 | S57: 0 | T57: 27 | U57: 0 | V57: =VLOOKUP(D57,SortBest!A:T,20,FALSE) -> 314
C58: 3 | D58: REYNOLDS, Sue | E58: 23 | F58: 22 | G58: 26 | H58: 22 | I58: 22 | J58: 24 | K58: 27 | L58: 22 | M58: 0 | N58: 0 | O58: 27 | P58: 25 | Q58: 25 | R58: 0 | S58: 28 | T58: 24 | U58: 25 | V58: =VLOOKUP(D58,SortBest!A:T,20,FALSE) -> 298
C59: 4 | D59: MCARD, Jan | E59: 25 | F59: 26 | G59: 29 | H59: 0 | I59: 0 | J59: 0 | K59: 28 | L59: 25 | M59: 24 | N59: 0 | O59: 26 | P59: 24 | Q59: 24 | R59: 30 | S59: 26 | T59: 0 | U59: 0 | V59: =VLOOKUP(D59,SortBest!A:T,20,FALSE) -> 287
C60: 5 | D60: OPARA, Elaine | E60: 29 | F60: 28 | G60: 0 | H60: 29 | I60: 28 | J60: 27 | K60: 0 | L60: 27 | M60: 28 | N60: 0 | O60: 0 | P60: 0 | Q60: 28 | R60: 0 | S60: 30 | T60: 26 | U60: 0 | V60: =VLOOKUP(D60,SortBest!A:T,20,FALSE) -> 280
C61: 6 | D61: COWDRAY, Kat | E61: 0 | F61: 0 | G61: 28 | H61: 0 | I61: 0 | J61: 26 | K61: 29 | L61: 26 | M61: 26 | N61: 27 | O61: 28 | P61: 26 | Q61: 27 | R61: 0 | S61: 29 | T61: 0 | U61: 0 | V61: =VLOOKUP(D61,SortBest!A:T,20,FALSE) -> 272
C62: 7 | D62: CRISP, Zoe | E62: 19 | F62: 20 | G62: 24 | H62: 20 | I62: 21 | J62: 19 | K62: 0 | L62: 0 | M62: 20 | N62: 0 | O62: 24 | P62: 20 | Q62: 23 | R62: 0 | S62: 27 | T62: 22 | U62: 0 | V62: =VLOOKUP(D62,SortBest!A:T,20,FALSE) -> 259
C63: 8 | D63: ALTY, Michele | E63: 26 | F63: 25 | G63: 27 | H63: 26 | I63: 25 | J63: 25 | K63: 30 | L63: 24 | M63: 25 | N63: 26 | O63: 0 | P63: 0 | Q63: 0 | R63: 0 | S63: 0 | T63: 0 | U63: 0 | V63: =VLOOKUP(D63,SortBest!A:T,20,FALSE) -> 259
C64: 9 | D64: LAMONT, Sharon | E64: 16 | F64: 16 | G64: 22 | H64: 17 | I64: 18 | J64: 16 | K64: 23 | L64: 17 | M64: 18 | N64: 22 | O64: 23 | P64: 18 | Q64: 19 | R64: 29 | S64: 24 | T64: 16 | U64: 21 | V64: =VLOOKUP(D64,SortBest!A:T,20,FALSE) -> 254
C65: 10 | D65: CUCKSEY, Lesley-Anne | E65: 17 | F65: 17 | G65: 23 | H65: 19 | I65: 19 | J65: 18 | K65: 25 | L65: 19 | M65: 21 | N65: 25 | O65: 0 | P65: 19 | Q65: 21 | R65: 0 | S65: 0 | T65: 17 | U65: 22 | V65: =VLOOKUP(D65,SortBest!A:T,20,FALSE) -> 248
C66: 11 | D66: MCCONNELL, Vicky | E66: 0 | F66: 0 | G66: 0 | H66: 27 | I66: 27 | J66: 0 | K66: 0 | L66: 23 | M66: 0 | N66: 30 | O66: 30 | P66: 27 | Q66: 29 | R66: 0 | S66: 0 | T66: 28 | U66: 27 | V66: =VLOOKUP(D66,SortBest!A:T,20,FALSE) -> 248
C67: 12 | D67: ANDREWS, Katherine | E67: 22 | F67: 23 | G67: 25 | H67: 23 | I67: 0 | J67: 0 | K67: 26 | L67: 0 | M67: 23 | N67: 0 | O67: 25 | P67: 21 | Q67: 0 | R67: 0 | S67: 0 | T67: 21 | U67: 20 | V67: =VLOOKUP(D67,SortBest!A:T,20,FALSE) -> 229
C68: 13 | D68: CUTHBERT, Caet | E68: 15 | F68: 15 | G68: 0 | H68: 14 | I68: 17 | J68: 0 | K68: 0 | L68: 16 | M68: 17 | N68: 21 | O68: 22 | P68: 14 | Q68: 17 | R68: 28 | S68: 0 | T68: 0 | U68: 0 | V68: =VLOOKUP(D68,SortBest!A:T,20,FALSE) -> 196
C69: 14 | D69: HUNTER, Maria | E69: 20 | F69: 19 | G69: 0 | H69: 21 | I69: 0 | J69: 21 | K69: 0 | L69: 21 | M69: 0 | N69: 0 | O69: 0 | P69: 22 | Q69: 22 | R69: 0 | S69: 0 | T69: 23 | U69: 24 | V69: =VLOOKUP(D69,SortBest!A:T,20,FALSE) -> 193
C70: 15 | D70: STANSFIELD, Helen-Anne | E70: 0 | F70: 0 | G70: 0 | H70: 0 | I70: 0 | J70: 23 | K70: 0 | L70: 0 | M70: 27 | N70: 28 | O70: 29 | P70: 23 | Q70: 26 | R70: 0 | S70: 0 | T70: 19 | U70: 0 | V70: =VLOOKUP(D70,SortBest!A:T,20,FALSE) -> 175
C71: 16 | D71: BARBAT, Julie | E71: 0 | F71: 0 | G71: 0 | H71: 0 | I71: 0 | J71: 0 | K71: 24 | L71: 20 | M71: 22 | N71: 24 | O71: 0 | P71: 0 | Q71: 0 | R71: 0 | S71: 25 | T71: 20 | U71: 23 | V71: =VLOOKUP(D71,SortBest!A:T,20,FALSE) -> 158
C72: 17 | D72: REES, Mary | E72: 14 | F72: 18 | G72: 0 | H72: 10 | I72: 20 | J72: 17 | K72: 0 | L72: 18 | M72: 0 | N72: 23 | O72: 0 | P72: 17 | Q72: 0 | R72: 0 | S72: 0 | T72: 18 | U72: 0 | V72: =VLOOKUP(D72,SortBest!A:T,20,FALSE) -> 155
C73: 18 | D73: KREMLING, Paulena | E73: 0 | F73: 0 | G73: 0 | H73: 0 | I73: 0 | J73: 30 | K73: 0 | L73: 30 | M73: 0 | N73: 0 | O73: 0 | P73: 30 | Q73: 0 | R73: 0 | S73: 0 | T73: 0 | U73: 30 | V73: =VLOOKUP(D73,SortBest!A:T,20,FALSE) -> 120
C74: 19 | D74: STANLEY, Alexandra | E74: 21 | F74: 21 | G74: 0 | H74: 25 | I74: 24 | J74: 22 | K74: 0 | L74: 0 | M74: 0 | N74: 0 | O74: 0 | P74: 0 | Q74: 0 | R74: 0 | S74: 0 | T74: 0 | U74: 0 | V74: =VLOOKUP(D74,SortBest!A:T,20,FALSE) -> 113
C75: 20 | D75: THOMPSON, Joniece | E75: 24 | F75: 24 | G75: 0 | H75: 24 | I75: 23 | J75: 0 | K75: 0 | L75: 0 | M75: 0 | N75: 0 | O75: 0 | P75: 0 | Q75: 0 | R75: 0 | S75: 0 | T75: 0 | U75: 0 | V75: =VLOOKUP(D75,SortBest!A:T,20,FALSE) -> 95
C76: 21 | D76: DAVIES, Nicci | E76: 13 | F76: 13 | G76: 0 | H76: 13 | I76: 16 | J76: 0 | K76: 0 | L76: 0 | M76: 19 | N76: 0 | O76: 0 | P76: 0 | Q76: 18 | R76: 0 | S76: 0 | T76: 0 | U76: 0 | V76: =VLOOKUP(D76,SortBest!A:T,20,FALSE) -> 92
C77: 22 | D77: EDWARDS, Jane | E77: 9 | F77: 12 | G77: 21 | H77: 15 | I77: 15 | J77: 15 | K77: 0 | L77: 0 | M77: 0 | N77: 0 | O77: 0 | P77: 0 | Q77: 0 | R77: 0 | S77: 0 | T77: 0 | U77: 0 | V77: =VLOOKUP(D77,SortBest!A:T,20,FALSE) -> 87
C78: 23 | D78: DABNER, Erin | E78: 27 | F78: 27 | G78: 0 | H78: 0 | I78: 26 | J78: 0 | K78: 0 | L78: 0 | M78: 0 | N78: 0 | O78: 0 | P78: 0 | Q78: 0 | R78: 0 | S78: 0 | T78: 0 | U78: 0 | V78: =VLOOKUP(D78,SortBest!A:T,20,FALSE) -> 80
C79: 24 | D79: RILEY, Sandra | E79: 12 | F79: 14 | G79: 0 | H79: 18 | I79: 0 | J79: 0 | K79: 0 | L79: 0 | M79: 0 | N79: 0 | O79: 0 | P79: 16 | Q79: 0 | R79: 0 | S79: 0 | T79: 0 | U79: 0 | V79: =VLOOKUP(D79,SortBest!A:T,20,FALSE) -> 60
C80: 25 | D80: NICHOLSON, Chloe | E80: 0 | F80: 0 | G80: 0 | H80: 0 | I80: 0 | J80: 0 | K80: 0 | L80: 0 | M80: 0 | N80: 0 | O80: 0 | P80: 0 | Q80: 0 | R80: 0 | S80: 0 | T80: 30 | U80: 29 | V80: =VLOOKUP(D80,SortBest!A:T,20,FALSE) -> 59
C81: 26 | D81: BROWN, Allison | E81: 0 | F81: 0 | G81: 0 | H81: 0 | I81: 0 | J81: 0 | K81: 0 | L81: 0 | M81: 0 | N81: 0 | O81: 0 | P81: 0 | Q81: 0 | R81: 0 | S81: 0 | T81: 25 | U81: 26 | V81: =VLOOKUP(D81,SortBest!A:T,20,FALSE) -> 51
C82: 27 | D82: WYNTER, Serena | E82: 10 | F82: 10 | G82: 0 | H82: 0 | I82: 0 | J82: 0 | K82: 0 | L82: 0 | M82: 0 | N82: 0 | O82: 0 | P82: 0 | Q82: 20 | R82: 0 | S82: 0 | T82: 0 | U82: 0 | V82: =VLOOKUP(D82,SortBest!A:T,20,FALSE) -> 40
C83: 28 | D83: MAGEE, Mary | E83: 11 | F83: 11 | G83: 0 | H83: 16 | I83: 0 | J83: 0 | K83: 0 | L83: 0 | M83: 0 | N83: 0 | O83: 0 | P83: 0 | Q83: 0 | R83: 0 | S83: 0 | T83: 0 | U83: 0 | V83: =VLOOKUP(D83,SortBest!A:T,20,FALSE) -> 38
C84: 29 | D84: ELLISON, Sandra | E84: 8 | F84: 0 | G84: 0 | H84: 12 | I84: 0 | J84: 0 | K84: 0 | L84: 0 | M84: 0 | N84: 0 | O84: 0 | P84: 0 | Q84: 0 | R84: 0 | S84: 0 | T84: 0 | U84: 0 | V84: =VLOOKUP(D84,SortBest!A:T,20,FALSE) -> 20
C85: 30 | D85: CLARKE, Isabella | E85: 0 | F85: 0 | G85: 0 | H85: 0 | I85: 0 | J85: 20 | K85: 0 | L85: 0 | M85: 0 | N85: 0 | O85: 0 | P85: 0 | Q85: 0 | R85: 0 | S85: 0 | T85: 0 | U85: 0 | V85: =VLOOKUP(D85,SortBest!A:T,20,FALSE) -> 20
C86: 31 | D86: CUTHBERT, Isabella | E86: 18 | F86: 0 | G86: 0 | H86: 0 | I86: 0 | J86: 0 | K86: 0 | L86: 0 | M86: 0 | N86: 0 | O86: 0 | P86: 0 | Q86: 0 | R86: 0 | S86: 0 | T86: 0 | U86: 0 | V86: =VLOOKUP(D86,SortBest!A:T,20,FALSE) -> 18
C87: 32 | D87: BACKINSELL, Kitty | E87: 0 | F87: 0 | G87: 0 | H87: 0 | I87: 0 | J87: 0 | K87: 0 | L87: 0 | M87: 0 | N87: 0 | O87: 0 | P87: 15 | Q87: 0 | R87: 0 | S87: 0 | T87: 0 | U87: 0 | V87: =VLOOKUP(D87,SortBest!A:T,20,FALSE) -> 15
C88: 33 | D88: CHAPMAN, Nicci | E88: 0 | F88: 0 | G88: 0 | H88: 11 | I88: 0 | J88: 0 | K88: 0 | L88: 0 | M88: 0 | N88: 0 | O88: 0 | P88: 0 | Q88: 0 | R88: 0 | S88: 0 | T88: 0 | U88: 0 | V88: =VLOOKUP(D88,SortBest!A:T,20,FALSE) -> 11
J89: Best 12 from 17 | L89: Ever Present

Sheet RaceResults
A1: AgeCat | B1: RunnerGPDivision | C1: Name | D1: Race1Score | E1: Race2Score | F1: Race3Score | G1: Race4Score | H1: Race5Score | I1: Race6Score | J1: Race7Score | K1: Race8Score | L1: Race9Score | M1: Race10Score | N1: Race11Score | O1: Race12Score | P1: Race13Score | Q1: Race14Score | R1: Race15Score | S1: Race16Score | T1: Race17Score | U1: Race18Score
A2: 1 | B2: 1 | C2: POLAND, Jack | D2: 0 | E2: 30 | F2: 0 | G2: 30 | H2: 0 | I2: 0 | J2: 0 | K2: 29 | L2: 30 | M2: 0 | N2: 0 | O2: 0 | P2: 0 | Q2: 0 | R2: 0 | S2: 29 | T2: 0 | U2: 0
A3: 1 | B3: 1 | C3: WHITWORTH, Rab | D3: 23 | E3: 23 | F3: 0 | G3: 24 | H3: 21 | I3: 22 | J3: 0 | K3: 22 | L3: 0 | M3: 0 | N3: 0 | O3: 0 | P3: 0 | Q3: 0 | R3: 0 | S3: 22 | T3: 24 | U3: 0
A4: 1 | B4: 1 | C4: WATSON, Luke | D4: 0 | E4: 27 | F4: 0 | G4: 0 | H4: 0 | I4: 0 | J4: 0 | K4: 0 | L4: 0 | M4: 0 | N4: 0 | O4: 0 | P4: 0 | Q4: 0 | R4: 0 | S4: 0 | T4: 0 | U4: 0
A5: 1 | B5: 1 | C5: CHADWICK, Oliver | D5: 0 | E5: 0 | F5: 0 | G5: 0 | H5: 30 | I5: 30 | J5: 0 | K5: 30 | L5: 0 | M5: 30 | N5: 0 | O5: 0 | P5: 0 | Q5: 0 | R5: 0 | S5: 30 | T5: 0 | U5: 0
A6: 1 | B6: 1 | C6: BIRD, Phil | D6: 20 | E6: 0 | F6: 0 | G6: 21 | H6: 18 | I6: 0 | J6: 0 | K6: 0 | L6: 0 | M6: 22 | N6: 0 | O6: 0 | P6: 0 | Q6: 0 | R6: 0 | S6: 0 | T6: 0 | U6: 0
A7: 1 | B7: 1 | C7: JONES, Christopher | D7: 0 | E7: 0 | F7: 0 | G7: 0 | H7: 0 | I7: 0 | J7: 0 | K7: 0 | L7: 0 | M7: 0 | N7: 0 | O7: 28 | P7: 0 | Q7: 0 | R7: 0 | S7: 0 | T7: 30 | U7: 0
A8: 1 | B8: 1 | C8: WOODS, Sam | D8: 25 | E8: 24 | F8: 0 | G8: 0 | H8: 24 | I8: 24 | J8: 28 | K8: 25 | L8: 0 | M8: 25 | N8: 0 | O8: 25 | P8: 0 | Q8: 0 | R8: 30 | S8: 20 | T8: 0 | U8: 0
A9: 1 | B9: 1 | C9: KENNEDY, Alan | D9: 30 | E9: 0 | F9: 0 | G9: 28 | H9: 27 | I9: 28 | J9: 0 | K9: 27 | L9: 29 | M9: 29 | N9: 30 | O9: 29 | P9: 0 | Q9: 0 | R9: 0 | S9: 27 | T9: 27 | U9: 0
A10: 1 | B10: 1 | C10: BARHAM, Pete | D10: 21 | E10: 22 | F10: 0 | G10: 23 | H10: 20 | I10: 21 | J10: 0 | K10: 21 | L10: 0 | M10: 23 | N10: 0 | O10: 24 | P10: 26 | Q10: 0 | R10: 0 | S10: 21 | T10: 23 | U10: 0
A11: 1 | B11: 1 | C11: POUSTIE, Mark | D11: 26 | E11: 25 | F11: 0 | G11: 25 | H11: 26 | I11: 26 | J11: 29 | K11: 23 | L11: 27 | M11: 27 | N11: 29 | O11: 0 | P11: 28 | Q11: 30 | R11: 0 | S11: 24 | T11: 25 | U11: 0
A12: 1 | B12: 1 | C12: PEARSE, Rob | D12: 29 | E12: 29 | F12: 0 | G12: 29 | H12: 29 | I12: 29 | J12: 30 | K12: 28 | L12: 28 | M12: 28 | N12: 0 | O12: 30 | P12: 30 | Q12: 0 | R12: 0 | S12: 26 | T12: 29 | U12: 0
A13: 1 | B13: 1 | C13: DABNER, Phil | D13: 27 | E13: 26 | F13: 0 | G13: 26 | H13: 25 | I13: 0 | J13: 0 | K13: 0 | L13: 0 | M13: 0 | N13: 0 | O13: 0 | P13: 0 | Q13: 0 | R13: 0 | S13: 0 | T13: 0 | U13: 0
A14: 1 | B14: 1 | C14: MCALISTER, Dave | D14: 0 | E14: 0 | F14: 0 | G14: 22 | H14: 0 | I14: 19 | J14: 26 | K14: 19 | L14: 25 | M14: 21 | N14: 0 | O14: 22 | P14: 25 | Q14: 0 | R14: 0 | S14: 18 | T14: 22 | U14: 0
A15: 1 | B15: 1 | C15: CUTHBERT, Phil | D15: 0 | E15: 0 | F15: 0 | G15: 0 | H15: 22 | I15: 23 | J15: 0 | K15: 0 | L15: 0 | M15: 0 | N15: 27 | O15: 0 | P15: 0 | Q15: 28 | R15: 0 | S15: 0 | T15: 0 | U15: 0
A16: 1 | B16: 1 | C16: MCARDLE, Connor | D16: 0 | E16: 0 | F16: 0 | G16: 0 | H16: 0 | I16: 0 | J16: 0 | K16: 0 | L16: 0 | M16: 0 | N16: 0 | O16: 0 | P16: 0 | Q16: 0 | R16: 0 | S16: 28 | T16: 0 | U16: 0
A17: 1 | B17: 1 | C17: BARBAT, Tony | D17: 24 | E17: 0 | F17: 0 | G17: 0 | H17: 23 | I17: 25 | J17: 27 | K17: 24 | L17: 26 | M17: 24 | N17: 28 | O17: 26 | P17: 27 | Q17: 29 | R17: 29 | S17: 23 | T17: 26 | U17: 0
A18: 1 | B18: 1 | C18: NORTON, Steve | D18: 22 | E18: 21 | F18: 0 | G18: 0 | H18: 19 | I18: 20 | J18: 0 | K18: 20 | L18: 0 | M18: 0 | N18: 0 | O18: 23 | P18: 0 | Q18: 0 | R18: 0 | S18: 19 | T18: 0 | U18: 0
A19: 1 | B19: 1 | C19: EVES, Scott | D19: 28 | E19: 28 | F19: 0 | G19: 27 | H19: 28 | I19: 27 | J19: 0 | K19: 26 | L19: 0 | M19: 26 | N19: 0 | O19: 27 | P19: 29 | Q19: 0 | R19: 0 | S19: 25 | T19: 28 | U19: 0
A20: 1 | B20: 0 | C20: JONES, Mike T | D20: 29 | E20: 0 | F20: 0 | G20: 0 | H20: 0 | I20: 0 | J20: 28 | K20: 25 | L20: 0 | M20: 0 | N20: 0 | O20: 0 | P20: 29 | Q20: 0 | R20: 0 | S20: 26 | T20: 25 | U20: 0
A21: 1 | B21: 0 | C21: STOCKER, Ken | D21: 11 | E21: 13 | F21: 0 | G21: 14 | H21: 0 | I21: 0 | J21: 0 | K21: 9 | L21: 0 | M21: 0 | N21: 0 | O21: 0 | P21: 0 | Q21: 0 | R21: 0 | S21: 0 | T21: 0 | U21: 0
A22: 1 | B22: 0 | C22: SALES, Sean | D22: 22 | E22: 26 | F22: 0 | G22: 0 | H22: 25 | I22: 0 | J22: 0 | K22: 19 | L22: 29 | M22: 0 | N22: 0 | O22: 24 | P22: 27 | Q22: 0 | R22: 0 | S22: 20 | T22: 19 | U22: 0
A23: 1 | B23: 0 | C23: SEAL, Brian | D23: 21 | E23: 27 | F23: 0 | G23: 26 | H23: 24 | I23: 25 | J23: 0 | K23: 21 | L23: 0 | M23: 0 | N23: 0 | O23: 27 | P23: 0 | Q23: 0 | R23: 29 | S23: 24 | T23: 20 | U23: 0
A24: 1 | B24: 0 | C24: GIBBONS, Neil | D24: 14 | E24: 17 | F24: 0 | G24: 0 | H24: 20 | I24: 19 | J24: 0 | K24: 15 | L24: 0 | M24: 0 | N24: 0 | O24: 0 | P24: 0 | Q24: 0 | R24: 0 | S24: 0 | T24: 0 | U24: 0
A25: 1 | B25: 0 | C25: CUTHBERT, Patrick | D25: 20 | E25: 25 | F25: 0 | G25: 23 | H25: 27 | I25: 22 | J25: 0 | K25: 0 | L25: 0 | M25: 0 | N25: 0 | O25: 0 | P25: 0 | Q25: 0 | R25: 0 | S25: 23 | T25: 24 | U25: 0
A26: 1 | B26: 0 | C26: CONNOLLY, Patrick | D26: 18 | E26: 19 | F26: 0 | G26: 17 | H26: 21 | I26: 18 | J26: 0 | K26: 13 | L26: 0 | M26: 0 | N26: 0 | O26: 0 | P26: 0 | Q26: 0 | R26: 0 | S26: 0 | T26: 0 | U26: 0
A27: 1 | B27: 0 | C27: DOHERTY, Mark | D27: 10 | E27: 15 | F27: 30 | G27: 15 | H27: 17 | I27: 15 | J27: 0 | K27: 0 | L27: 0 | M27: 0 | N27: 0 | O27: 16 | P27: 0 | Q27: 0 | R27: 0 | S27: 0 | T27: 0 | U27: 0
A28: 1 | B28: 0 | C28: COLE, Steve | D28: 17 | E28: 21 | F28: 0 | G28: 22 | H28: 19 | I28: 23 | J28: 27 | K28: 18 | L28: 0 | M28: 0 | N28: 0 | O28: 23 | P28: 0 | Q28: 0 | R28: 0 | S28: 18 | T28: 17 | U28: 0
A29: 1 | B29: 0 | C29: FEELY, Michael | D29: 0 | E29: 0 | F29: 0 | G29: 0 | H29: 0 | I29: 0 | J29: 0 | K29: 0 | L29: 0 | M29: 0 | N29: 0 | O29: 0 | P29: 0 | Q29: 0 | R29: 0 | S29: 0 | T29: 16 | U29: 0
A30: 1 | B30: 0 | C30: FERRONI, Stephen | D30: 30 | E30: 30 | F30: 0 | G30: 30 | H30: 30 | I30: 30 | J30: 0 | K30: 30 | L30: 0 | M30: 0 | N30: 0 | O30: 30 | P30: 0 | Q30: 0 | R30: 0 | S30: 0 | T30: 30 | U30: 0
A31: 1 | B31: 0 | C31: HAMPSHIRE, William | D31: 26 | E31: 0 | F31: 0 | G31: 0 | H31: 28 | I31: 0 | J31: 0 | K31: 0 | L31: 0 | M31: 0 | N31: 0 | O31: 0 | P31: 0 | Q31: 0 | R31: 0 | S31: 0 | T31: 0 | U31: 0
A32: 1 | B32: 0 | C32: GILLIES, George | D32: 27 | E32: 29 | F32: 0 | G32: 28 | H32: 29 | I32: 27 | J32: 29 | K32: 24 | L32: 30 | M32: 30 | N32: 30 | O32: 28 | P32: 30 | Q32: 0 | R32: 30 | S32: 30 | T32: 29 | U32: 0
A33: 1 | B33: 0 | C33: BOWERS, Chris | D33: 25 | E33: 28 | F33: 0 | G33: 27 | H33: 26 | I33: 24 | J33: 0 | K33: 22 | L33: 0 | M33: 29 | N33: 29 | O33: 0 | P33: 0 | Q33: 0 | R33: 0 | S33: 22 | T33: 22 | U33: 0
A34: 1 | B34: 0 | C34: ROBSON, Michael | D34: 0 | E34: 0 | F34: 0 | G34: 0 | H34: 0 | I34: 26 | J34: 0 | K34: 23 | L34: 0 | M34: 0 | N34: 0 | O34: 0 | P34: 0 | Q34: 0 | R34: 0 | S34: 25 | T34: 0 | U34: 0
A35: 1 | B35: 0 | C35: MCARDLE, Derek | D35: 15 | E35: 20 | F35: 0 | G35: 20 | H35: 23 | I35: 21 | J35: 0 | K35: 0 | L35: 0 | M35: 0 | N35: 0 | O35: 20 | P35: 0 | Q35: 0 | R35: 0 | S35: 17 | T35: 13 | U35: 0
A36: 1 | B36: 0 | C36: ELLISON, John | D36: 28 | E36: 0 | F36: 0 | G36: 0 | H36: 0 | I36: 0 | J36: 0 | K36: 27 | L36: 0 | M36: 0 | N36: 0 | O36: 0 | P36: 0 | Q36: 0 | R36: 0 | S36: 0 | T36: 0 | U36: 0
A37: 1 | B37: 0 | C37: WYNNE, Mark | D37: 0 | E37: 0 | F37: 0 | G37: 0 | H37: 0 | I37: 0 | J37: 0 | K37: 28 | L37: 0 | M37: 0 | N37: 0 | O37: 0 | P37: 0 | Q37: 0 | R37: 0 | S37: 29 | T37: 0 | U37: 0
A38: 1 | B38: 0 | C38: GRIFFITHS, Paul | D38: 0 | E38: 0 | F38: 0 | G38: 0 | H38: 0 | I38: 0 | J38: 0 | K38: 16 | L38: 0 | M38: 0 | N38: 0 | O38: 25 | P38: 0 | Q38: 0 | R38: 0 | S38: 21 | T38: 21 | U38: 0
A39: 1 | B39: 0 | C39: MCARDLE, Pete | D39: 0 | E39: 0 | F39: 0 | G39: 0 | H39: 0 | I39: 17 | J39: 0 | K39: 14 | L39: 0 | M39: 0 | N39: 0 | O39: 18 | P39: 0 | Q39: 0 | R39: 0 | S39: 11 | T39: 12 | U39: 0
A40: 1 | B40: 0 | C40: HOARE, Daniel | D40: 0 | E40: 0 | F40: 0 | G40: 0 | H40: 0 | I40: 0 | J40: 0 | K40: 0 | L40: 0 | M40: 0 | N40: 0 | O40: 21 | P40: 0 | Q40: 0 | R40: 0 | S40: 19 | T40: 18 | U40: 0
A41: 1 | B41: 0 | C41: LESLIE, Steven | D41: 0 | E41: 0 | F41: 0 | G41: 29 | H41: 0 | I41: 28 | J41: 0 | K41: 26 | L41: 0 | M41: 0 | N41: 0 | O41: 29 | P41: 0 | Q41: 0 | R41: 0 | S41: 27 | T41: 26 | U41: 0
A42: 1 | B42: 0 | C42: HOLMES, Tony | D42: 0 | E42: 16 | F42: 0 | G42: 16 | H42: 18 | I42: 16 | J42: 0 | K42: 0 | L42: 0 | M42: 0 | N42: 0 | O42: 19 | P42: 0 | Q42: 0 | R42: 0 | S42: 12 | T42: 11 | U42: 0
A43: 1 | B43: 0 | C43: BACKINSELL, Jim | D43: 0 | E43: 0 | F43: 0 | G43: 19 | H43: 22 | I43: 20 | J43: 0 | K43: 17 | L43: 0 | M43: 0 | N43: 0 | O43: 22 | P43: 0 | Q43: 0 | R43: 0 | S43: 16 | T43: 15 | U43: 0
A44: 1 | B44: 0 | C44: HUGHES, Gareth | D44: 0 | E44: 0 | F44: 0 | G44: 0 | H44: 0 | I44: 0 | J44: 0 | K44: 12 | L44: 0 | M44: 0 | N44: 0 | O44: 17 | P44: 0 | Q44: 0 | R44: 0 | S44: 13 | T44: 0 | U44: 0
A45: 1 | B45: 0 | C45: PERRY, Robert | D45: 13 | E45: 14 | F45: 0 | G45: 0 | H45: 16 | I45: 0 | J45: 0 | K45: 11 | L45: 27 | M45: 28 | N45: 0 | O45: 15 | P45: 0 | Q45: 0 | R45: 0 | S45: 10 | T45: 0 | U45: 0
A46: 1 | B46: 0 | C46: WADE, David | D46: 16 | E46: 18 | F46: 0 | G46: 21 | H46: 0 | I46: 0 | J46: 0 | K46: 0 | L46: 0 | M46: 0 | N46: 0 | O46: 0 | P46: 0 | Q46: 0 | R46: 0 | S46: 14 | T46: 0 | U46: 0
A47: 1 | B47: 0 | C47: RAE, Nick | D47: 12 | E47: 12 | F47: 0 | G47: 13 | H47: 15 | I47: 14 | J47: 0 | K47: 10 | L47: 0 | M47: 0 | N47: 0 | O47: 0 | P47: 0 | Q47: 0 | R47: 0 | S47: 9 | T47: 10 | U47: 0
A48: 1 | B48: 0 | C48: GORMAN, Louis | D48: 0 | E48: 0 | F48: 0 | G48: 0 | H48: 0 | I48: 29 | J48: 0 | K48: 29 | L48: 0 | M48: 0 | N48: 0 | O48: 0 | P48: 0 | Q48: 0 | R48: 0 | S48: 28 | T48: 28 | U48: 0
A49: 1 | B49: 0 | C49: WARREN, Dominic | D49: 23 | E49: 23 | F49: 0 | G49: 25 | H49: 0 | I49: 0 | J49: 0 | K49: 20 | L49: 28 | M49: 0 | N49: 0 | O49: 26 | P49: 28 | Q49: 0 | R49: 0 | S49: 0 | T49: 0 | U49: 0
A50: 1 | B50: 0 | C50: SUMMERFIELD, Leon | D50: 0 | E50: 0 | F50: 0 | G50: 18 | H50: 0 | I50: 0 | J50: 0 | K50: 0 | L50: 0 | M50: 0 | N50: 0 | O50: 0 | P50: 0 | Q50: 0 | R50: 0 | S50: 15 | T50: 14 | U50: 0
A51: 1 | B51: 0 | C51: ROUGHLEY, Andrew | D51: 24 | E51: 24 | F51: 0 | G51: 24 | H51: 0 | I51: 0 | J51: 0 | K51: 0 | L51: 0 | M51: 0 | N51: 0 | O51: 0 | P51: 0 | Q51: 0 | R51: 0 | S51: 0 | T51: 0 | U51: 0
A52: 1 | B52: 0 | C52: SAUNDERS, Paul | D52: 19 | E52: 22 | F52: 0 | G52: 0 | H52: 0 | I52: 0 | J52: 0 | K52: 0 | L52: 0 | M52: 0 | N52: 0 | O52: 0 | P52: 0 | Q52: 0 | R52: 0 | S52: 0 | T52: 0 | U52: 0
A53: 1 | B53: 0 | C53: JOHNSTONE, Paul | D53: 0 | E53: 0 | F53: 0 | G53: 0 | H53: 0 | I53: 0 | J53: 0 | K53: 0 | L53: 0 | M53: 0 | N53: 0 | O53: 0 | P53: 0 | Q53: 0 | R53: 0 | S53: 0 | T53: 23 | U53: 0
A54: 1 | B54: 0 | C54: ANDERSON, Daniel | D54: 0 | E54: 0 | F54: 0 | G54: 0 | H54: 0 | I54: 0 | J54: 30 | K54: 0 | L54: 0 | M54: 0 | N54: 0 | O54: 0 | P54: 0 | Q54: 0 | R54: 0 | S54: 0 | T54: 27 | U54: 0
A55: 2 | B55: 0 | C55: DAVIES, Nicci | D55: 13 | E55: 13 | F55: 0 | G55: 13 | H55: 16 | I55: 0 | J55: 0 | K55: 0 | L55: 19 | M55: 0 | N55: 0 | O55: 0 | P55: 18 | Q55: 0 | R55: 0 | S55: 0 | T55: 0 | U55: 0
A56: 2 | B56: 0 | C56: CUCKSEY, Lesley-Anne | D56: 17 | E56: 17 | F56: 23 | G56: 19 | H56: 19 | I56: 18 | J56: 25 | K56: 19 | L56: 21 | M56: 25 | N56: 0 | O56: 19 | P56: 21 | Q56: 0 | R56: 0 | S56: 17 | T56: 22 | U56: 0
A57: 2 | B57: 0 | C57: OPARA, Elaine | D57: 29 | E57: 28 | F57: 0 | G57: 29 | H57: 28 | I57: 27 | J57: 0 | K57: 27 | L57: 28 | M57: 0 | N57: 0 | O57: 0 | P57: 28 | Q57: 0 | R57: 30 | S57: 26 | T57: 0 | U57: 0
A58: 2 | B58: 0 | C58: CUTHBERT, Caet | D58: 15 | E58: 15 | F58: 0 | G58: 14 | H58: 17 | I58: 0 | J58: 0 | K58: 16 | L58: 17 | M58: 21 | N58: 22 | O58: 14 | P58: 17 | Q58: 28 | R58: 0 | S58: 0 | T58: 0 | U58: 0
A59: 2 | B59: 0 | C59: MCCONNELL, Vicky | D59: 0 | E59: 0 | F59: 0 | G59: 27 | H59: 27 | I59: 0 | J59: 0 | K59: 23 | L59: 0 | M59: 30 | N59: 30 | O59: 27 | P59: 29 | Q59: 0 | R59: 0 | S59: 28 | T59: 27 | U59: 0
A60: 2 | B60: 0 | C60: HUNTER, Maria | D60: 20 | E60: 19 | F60: 0 | G60: 21 | H60: 0 | I60: 21 | J60: 0 | K60: 21 | L60: 0 | M60: 0 | N60: 0 | O60: 22 | P60: 22 | Q60: 0 | R60: 0 | S60: 23 | T60: 24 | U60: 0
A61: 2 | B61: 0 | C61: BACKINSELL, Kitty | D61: 0 | E61: 0 | F61: 0 | G61: 0 | H61: 0 | I61: 0 | J61: 0 | K61: 0 | L61: 0 | M61: 0 | N61: 0 | O61: 15 | P61: 0 | Q61: 0 | R61: 0 | S61: 0 | T61: 0 | U61: 0
A62: 2 | B62: 0 | C62: BARBAT, Julie | D62: 0 | E62: 0 | F62: 0 | G62: 0 | H62: 0 | I62: 0 | J62: 24 | K62: 20 | L62: 22 | M62: 24 | N62: 0 | O62: 0 | P62: 0 | Q62: 0 | R62: 25 | S62: 20 | T62: 23 | U62: 0
A63: 2 | B63: 0 | C63: ELLISON, Sandra | D63: 8 | E63: 0 | F63: 0 | G63: 12 | H63: 0 | I63: 0 | J63: 0 | K63: 0 | L63: 0 | M63: 0 | N63: 0 | O63: 0 | P63: 0 | Q63: 0 | R63: 0 | S63: 0 | T63: 0 | U63: 0
A64: 2 | B64: 0 | C64: BROWN, Allison | D64: 0 | E64: 0 | F64: 0 | G64: 0 | H64: 0 | I64: 0 | J64: 0 | K64: 0 | L64: 0 | M64: 0 | N64: 0 | O64: 0 | P64: 0 | Q64: 0 | R64: 0 | S64: 25 | T64: 26 | U64: 0
A65: 2 | B65: 0 | C65: WYNTER, Serena | D65: 10 | E65: 10 | F65: 0 | G65: 0 | H65: 0 | I65: 0 | J65: 0 | K65: 0 | L65: 0 | M65: 0 | N65: 0 | O65: 0 | P65: 20 | Q65: 0 | R65: 0 | S65: 0 | T65: 0 | U65: 0
A66: 2 | B66: 0 | C66: STANLEY, Alexandra | D66: 21 | E66: 21 | F66: 0 | G66: 25 | H66: 24 | I66: 22 | J66: 0 | K66: 0 | L66: 0 | M66: 0 | N66: 0 | O66: 0 | P66: 0 | Q66: 0 | R66: 0 | S66: 0 | T66: 0 | U66: 0
A67: 2 | B67: 0 | C67: CUTHBERT, Isabella | D67: 18 | E67: 0 | F67: 0 | G67: 0 | H67: 0 | I67: 0 | J67: 0 | K67: 0 | L67: 0 | M67: 0 | N67: 0 | O67: 0 | P67: 0 | Q67: 0 | R67: 0 | S67: 0 | T67: 0 | U67: 0
A68: 2 | B68: 0 | C68: EDWARDS, Jane | D68: 9 | E68: 12 | F68: 21 | G68: 15 | H68: 15 | I68: 15 | J68: 0 | K68: 0 | L68: 0 | M68: 0 | N68: 0 | O68: 0 | P68: 0 | Q68: 0 | R68: 0 | S68: 0 | T68: 0 | U68: 0
A69: 2 | B69: 0 | C69: CLARKE, Isabella | D69: 0 | E69: 0 | F69: 0 | G69: 0 | H69: 0 | I69: 20 | J69: 0 | K69: 0 | L69: 0 | M69: 0 | N69: 0 | O69: 0 | P69: 0 | Q69: 0 | R69: 0 | S69: 0 | T69: 0 | U69: 0
A70: 2 | B70: 0 | C70: LAMONT, Sharon | D70: 16 | E70: 16 | F70: 22 | G70: 17 | H70: 18 | I70: 16 | J70: 23 | K70: 17 | L70: 18 | M70: 22 | N70: 23 | O70: 18 | P70: 19 | Q70: 29 | R70: 24 | S70: 16 | T70: 21 | U70: 0
A71: 2 | B71: 0 | C71: CRISP, Zoe | D71: 19 | E71: 20 | F71: 24 | G71: 20 | H71: 21 | I71: 19 | J71: 0 | K71: 0 | L71: 20 | M71: 0 | N71: 24 | O71: 20 | P71: 23 | Q71: 0 | R71: 27 | S71: 22 | T71: 0 | U71: 0
A72: 2 | B72: 0 | C72: COWDRAY, Kat | D72: 0 | E72: 0 | F72: 28 | G72: 0 | H72: 0 | I72: 26 | J72: 29 | K72: 26 | L72: 26 | M72: 27 | N72: 28 | O72: 26 | P72: 27 | Q72: 0 | R72: 29 | S72: 0 | T72: 0 | U72: 0
A73: 2 | B73: 0 | C73: DABNER, Erin | D73: 27 | E73: 27 | F73: 0 | G73: 0 | H73: 26 | I73: 0 | J73: 0 | K73: 0 | L73: 0 | M73: 0 | N73: 0 | O73: 0 | P73: 0 | Q73: 0 | R73: 0 | S73: 0 | T73: 0 | U73: 0
A74: 2 | B74: 0 | C74: ANDREWS, Katherine | D74: 22 | E74: 23 | F74: 25 | G74: 23 | H74: 0 | I74: 0 | J74: 26 | K74: 0 | L74: 23 | M74: 0 | N74: 25 | O74: 21 | P74: 0 | Q74: 0 | R74: 0 | S74: 21 | T74: 20 | U74: 0
A75: 2 | B75: 0 | C75: THOMPSON, Joniece | D75: 24 | E75: 24 | F75: 0 | G75: 24 | H75: 23 | I75: 0 | J75: 0 | K75: 0 | L75: 0 | M75: 0 | N75: 0 | O75: 0 | P75: 0 | Q75: 0 | R75: 0 | S75: 0 | T75: 0 | U75: 0
A76: 2 | B76: 0 | C76: MAGEE, Mary | D76: 11 | E76: 11 | F76: 0 | G76: 16 | H76: 0 | I76: 0 | J76: 0 | K76: 0 | L76: 0 | M76: 0 | N76: 0 | O76: 0 | P76: 0 | Q76: 0 | R76: 0 | S76: 0 | T76: 0 | U76: 0
A77: 2 | B77: 0 | C77: BLACKLOCK, Becky | D77: 30 | E77: 30 | F77: 30 | G77: 30 | H77: 30 | I77: 29 | J77: 0 | K77: 29 | L77: 30 | M77: 0 | N77: 0 | O77: 28 | P77: 0 | Q77: 0 | R77: 0 | S77: 29 | T77: 28 | U77: 0
A78: 2 | B78: 0 | C78: ALTY, Michele | D78: 26 | E78: 25 | F78: 27 | G78: 26 | H78: 25 | I78: 25 | J78: 30 | K78: 24 | L78: 25 | M78: 26 | N78: 0 | O78: 0 | P78: 0 | Q78: 0 | R78: 0 | S78: 0 | T78: 0 | U78: 0
A79: 2 | B79: 0 | C79: CHAPMAN, Nicci | D79: 0 | E79: 0 | F79: 0 | G79: 11 | H79: 0 | I79: 0 | J79: 0 | K79: 0 | L79: 0 | M79: 0 | N79: 0 | O79: 0 | P79: 0 | Q79: 0 | R79: 0 | S79: 0 | T79: 0 | U79: 0
A80: 2 | B80: 0 | C80: REES, Mary | D80: 14 | E80: 18 | F80: 0 | G80: 10 | H80: 20 | I80: 17 | J80: 0 | K80: 18 | L80: 0 | M80: 23 | N80: 0 | O80: 17 | P80: 0 | Q80: 0 | R80: 0 | S80: 18 | T80: 0 | U80: 0
A81: 2 | B81: 0 | C81: RILEY, Sandra | D81: 12 | E81: 14 | F81: 0 | G81: 18 | H81: 0 | I81: 0 | J81: 0 | K81: 0 | L81: 0 | M81: 0 | N81: 0 | O81: 16 | P81: 0 | Q81: 0 | R81: 0 | S81: 0 | T81: 0 | U81: 0
A82: 2 | B82: 0 | C82: KENNY, Anna | D82: 28 | E82: 29 | F82: 0 | G82: 28 | H82: 29 | I82: 28 | J82: 0 | K82: 28 | L82: 29 | M82: 29 | N82: 0 | O82: 29 | P82: 30 | Q82: 0 | R82: 0 | S82: 27 | T82: 0 | U82: 0
A83: 2 | B83: 0 | C83: NICHOLSON, Chloe | D83: 0 | E83: 0 | F83: 0 | G83: 0 | H83: 0 | I83: 0 | J83: 0 | K83: 0 | L83: 0 | M83: 0 | N83: 0 | O83: 0 | P83: 0 | Q83: 0 | R83: 0 | S83: 30 | T83: 29 | U83: 0
A84: 2 | B84: 0 | C84: KREMLING, Paulena | D84: 0 | E84: 0 | F84: 0 | G84: 0 | H84: 0 | I84: 30 | J84: 0 | K84: 30 | L84: 0 | M84: 0 | N84: 0 | O84: 30 | P84: 0 | Q84: 0 | R84: 0 | S84: 0 | T84: 30 | U84: 0
A85: 2 | B85: 0 | C85: MCARD, Jan | D85: 25 | E85: 26 | F85: 29 | G85: 0 | H85: 0 | I85: 0 | J85: 28 | K85: 25 | L85: 24 | M85: 0 | N85: 26 | O85: 24 | P85: 24 | Q85: 30 | R85: 26 | S85: 0 | T85: 0 | U85: 0
A86: 2 | B86: 0 | C86: STANSFIELD, Helen-Anne | D86: 0 | E86: 0 | F86: 0 | G86: 0 | H86: 0 | I86: 23 | J86: 0 | K86: 0 | L86: 27 | M86: 28 | N86: 29 | O86: 23 | P86: 26 | Q86: 0 | R86: 0 | S86: 19 | T86: 0 | U86: 0
A87: 2 | B87: 0 | C87: REYNOLDS, Sue | D87: 23 | E87: 22 | F87: 26 | G87: 22 | H87: 22 | I87: 24 | J87: 27 | K87: 22 | L87: 0 | M87: 0 | N87: 27 | O87: 25 | P87: 25 | Q87: 0 | R87: 28 | S87: 24 | T87: 25 | U87: 0

Sheet SortBest
A1: POLAND, Jack | B1: 30 | C1: 30 | D1: 30 | E1: 29 | F1: 29 | G1: 0 | H1: 0 | I1: 0 | J1: 0 | K1: 0 | L1: 0 | M1: 0 | N1: 0 | O1: 0 | P1: 0 | Q1: 0 | R1: 0 | S1: 0 | T1: =SUM(B1:M1) -> 148
A2: WHITWORTH, Rab | B2: 24 | C2: 24 | D2: 23 | E2: 23 | F2: 22 | G2: 22 | H2: 22 | I2: 21 | J2: 0 | K2: 0 | L2: 0 | M2: 0 | N2: 0 | O2: 0 | P2: 0 | Q2: 0 | R2: 0 | S2: 0 | T2: =SUM(B2:M2) -> 181
A3: WATSON, Luke | B3: 27 | C3: 0 | D3: 0 | E3: 0 | F3: 0 | G3: 0 | H3: 0 | I3: 0 | J3: 0 | K3: 0 | L3: 0 | M3: 0 | N3: 0 | O3: 0 | P3: 0 | Q3: 0 | R3: 0 | S3: 0 | T3: 27
A4: CHADWICK, Oliver | B4: 30 | C4: 30 | D4: 30 | E4: 30 | F4: 30 | G4: 0 | H4: 0 | I4: 0 | J4: 0 | K4: 0 | L4: 0 | M4: 0 | N4: 0 | O4: 0 | P4: 0 | Q4: 0 | R4: 0 | S4: 0 | T4: 150
A5: BIRD, Phil | B5: 22 | C5: 21 | D5: 20 | E5: 18 | F5: 0 | G5: 0 | H5: 0 | I5: 0 | J5: 0 | K5: 0 | L5: 0 | M5: 0 | N5: 0 | O5: 0 | P5: 0 | Q5: 0 | R5: 0 | S5: 0 | T5: 81
A6: JONES, Christopher | B6: 30 | C6: 28 | D6: 0 | E6: 0 | F6: 0 | G6: 0 | H6: 0 | I6: 0 | J6: 0 | K6: 0 | L6: 0 | M6: 0 | N6: 0 | O6: 0 | P6: 0 | Q6: 0 | R6: 0 | S6: 0 | T6: 58
A7: WOODS, Sam | B7: 30 | C7: 28 | D7: 25 | E7: 25 | F7: 25 | G7: 25 | H7: 24 | I7: 24 | J7: 24 | K7: 20 | L7: 0 | M7: 0 | N7: 0 | O7: 0 | P7: 0 | Q7: 0 | R7: 0 | S7: 0 | T7: 250
A8: KENNEDY, Alan | B8: 30 | C8: 30 | D8: 29 | E8: 29 | F8: 29 | G8: 28 | H8: 28 | I8: 27 | J8: 27 | K8: 27 | L8: 27 | M8: 0 | N8: 0 | O8: 0 | P8: 0 | Q8: 0 | R8: 0 | S8: 0 | T8: 311
A9: BARHAM, Pete | B9: 26 | C9: 24 | D9: 23 | E9: 23 | F9: 23 | G9: 22 | H9: 21 | I9: 21 | J9: 21 | K9: 21 | L9: 20 | M9: 0 | N9: 0 | O9: 0 | P9: 0 | Q9: 0 | R9: 0 | S9: 0 | T9: 245
A10: POUSTIE, Mark | B10: 30 | C10: 29 | D10: 29 | E10: 28 | F10: 27 | G10: 27 | H10: 26 | I10: 26 | J10: 26 | K10: 25 | L10: 25 | M10: 25 | N10: 24 | O10: 23 | P10: 0 | Q10: 0 | R10: 0 | S10: 0 | T10: 323
A11: PEARSE, Rob | B11: 30 | C11: 30 | D11: 30 | E11: 29 | F11: 29 | G11: 29 | H11: 29 | I11: 29 | J11: 29 | K11: 28 | L11: 28 | M11: 28 | N11: 26 | O11: 0 | P11: 0 | Q11: 0 | R11: 0 | S11: 0 | T11: 348
A12: DABNER, Phil | B12: 27 | C12: 26 | D12: 26 | E12: 25 | F12: 0 | G12: 0 | H12: 0 | I12: 0 | J12: 0 | K12: 0 | L12: 0 | M12: 0 | N12: 0 | O12: 0 | P12: 0 | Q12: 0 | R12: 0 | S12: 0 | T12: 104
A13: MCALISTER, Dave | B13: 26 | C13: 25 | D13: 25 | E13: 22 | F13: 22 | G13: 22 | H13: 21 | I13: 19 | J13: 19 | K13: 18 | L13: 0 | M13: 0 | N13: 0 | O13: 0 | P13: 0 | Q13: 0 | R13: 0 | S13: 0 | T13: 219
A14: CUTHBERT, Phil | B14: 28 | C14: 27 | D14: 23 | E14: 22 | F14: 0 | G14: 0 | H14: 0 | I14: 0 | J14: 0 | K14: 0 | L14: 0 | M14: 0 | N14: 0 | O14: 0 | P14: 0 | Q14: 0 | R14: 0 | S14: 0 | T14: 100
A15: MCARDLE, Connor | B15: 28 | C15: 0 | D15: 0 | E15: 0 | F15: 0 | G15: 0 | H15: 0 | I15: 0 | J15: 0 | K15: 0 | L15: 0 | M15: 0 | N15: 0 | O15: 0 | P15: 0 | Q15: 0 | R15: 0 | S15: 0 | T15: 28
A16: BARBAT, Tony | B16: 29 | C16: 29 | D16: 28 | E16: 27 | F16: 27 | G16: 26 | H16: 26 | I16: 26 | J16: 25 | K16: 24 | L16: 24 | M16: 24 | N16: 23 | O16: 23 | P16: 0 | Q16: 0 | R16: 0 | S16: 0 | T16: 315
A17: NORTON, Steve | B17: 23 | C17: 22 | D17: 21 | E17: 20 | F17: 20 | G17: 19 | H17: 19 | I17: 0 | J17: 0 | K17: 0 | L17: 0 | M17: 0 | N17: 0 | O17: 0 | P17: 0 | Q17: 0 | R17: 0 | S17: 0 | T17: 144
A18: EVES, Scott | B18: 29 | C18: 28 | D18: 28 | E18: 28 | F18: 28 | G18: 27 | H18: 27 | I18: 27 | J18: 26 | K18: 26 | L18: 25 | M18: 0 | N18: 0 | O18: 0 | P18: 0 | Q18: 0 | R18: 0 | S18: 0 | T18: 299
A19: JONES, Mike T | B19: 29 | C19: 29 | D19: 28 | E19: 26 | F19: 25 | G19: 25 | H19: 0 | I19: 0 | J19: 0 | K19: 0 | L19: 0 | M19: 0 | N19: 0 | O19: 0 | P19: 0 | Q19: 0 | R19: 0 | S19: 0 | T19: 162
A20: STOCKER, Ken | B20: 14 | C20: 13 | D20: 11 | E20: 9 | F20: 0 | G20: 0 | H20: 0 | I20: 0 | J20: 0 | K20: 0 | L20: 0 | M20: 0 | N20: 0 | O20: 0 | P20: 0 | Q20: 0 | R20: 0 | S20: 0 | T20: 47
A21: SALES, Sean | B21: 29 | C21: 27 | D21: 26 | E21: 25 | F21: 24 | G21: 22 | H21: 20 | I21: 19 | J21: 19 | K21: 0 | L21: 0 | M21: 0 | N21: 0 | O21: 0 | P21: 0 | Q21: 0 | R21: 0 | S21: 0 | T21: 211
A22: SEAL, Brian | B22: 29 | C22: 27 | D22: 27 | E22: 26 | F22: 25 | G22: 24 | H22: 24 | I22: 21 | J22: 21 | K22: 20 | L22: 0 | M22: 0 | N22: 0 | O22: 0 | P22: 0 | Q22: 0 | R22: 0 | S22: 0 | T22: 244
A23: GIBBONS, Neil | B23: 20 | C23: 19 | D23: 17 | E23: 15 | F23: 14 | G23: 0 | H23: 0 | I23: 0 | J23: 0 | K23: 0 | L23: 0 | M23: 0 | N23: 0 | O23: 0 | P23: 0 | Q23: 0 | R23: 0 | S23: 0 | T23: 85
A24: CUTHBERT, Patrick | B24: 27 | C24: 25 | D24: 24 | E24: 23 | F24: 23 | G24: 22 | H24: 20 | I24: 0 | J24: 0 | K24: 0 | L24: 0 | M24: 0 | N24: 0 | O24: 0 | P24: 0 | Q24: 0 | R24: 0 | S24: 0 | T24: 164
A25: CONNOLLY, Patrick | B25: 21 | C25: 19 | D25: 18 | E25: 18 | F25: 17 | G25: 13 | H25: 0 | I25: 0 | J25: 0 | K25: 0 | L25: 0 | M25: 0 | N25: 0 | O25: 0 | P25: 0 | Q25: 0 | R25: 0 | S25: 0 | T25: 106
A26: DOHERTY, Mark | B26: 30 | C26: 17 | D26: 16 | E26: 15 | F26: 15 | G26: 15 | H26: 10 | I26: 0 | J26: 0 | K26: 0 | L26: 0 | M26: 0 | N26: 0 | O26: 0 | P26: 0 | Q26: 0 | R26: 0 | S26: 0 | T26: 118
A27: COLE, Steve | B27: 27 | C27: 23 | D27: 23 | E27: 22 | F27: 21 | G27: 19 | H27: 18 | I27: 18 | J27: 17 | K27: 17 | L27: 0 | M27: 0 | N27: 0 | O27: 0 | P27: 0 | Q27: 0 | R27: 0 | S27: 0 | T27: 205
A28: FEELY, Michael | B28: 16 | C28: 0 | D28: 0 | E28: 0 | F28: 0 | G28: 0 | H28: 0 | I28: 0 | J28: 0 | K28: 0 | L28: 0 | M28: 0 | N28: 0 | O28: 0 | P28: 0 | Q28: 0 | R28: 0 | S28: 0 | T28: 16
A29: FERRONI, Stephen | B29: 30 | C29: 30 | D29: 30 | E29: 30 | F29: 30 | G29: 30 | H29: 30 | I29: 30 | J29: 0 | K29: 0 | L29: 0 | M29: 0 | N29: 0 | O29: 0 | P29: 0 | Q29: 0 | R29: 0 | S29: 0 | T29: 240
A30: HAMPSHIRE, William | B30: 28 | C30: 26 | D30: 0 | E30: 0 | F30: 0 | G30: 0 | H30: 0 | I30: 0 | J30: 0 | K30: 0 | L30: 0 | M30: 0 | N30: 0 | O30: 0 | P30: 0 | Q30: 0 | R30: 0 | S30: 0 | T30: 54
A31: GILLIES, George | B31: 30 | C31: 30 | D31: 30 | E31: 30 | F31: 30 | G31: 30 | H31: 29 | I31: 29 | J31: 29 | K31: 29 | L31: 28 | M31: 28 | N31: 27 | O31: 27 | P31: 24 | Q31: 0 | R31: 0 | S31: 0 | T31: 352
A32: BOWERS, Chris | B32: 29 | C32: 29 | D32: 28 | E32: 27 | F32: 26 | G32: 25 | H32: 24 | I32: 22 | J32: 22 | K32: 22 | L32: 0 | M32: 0 | N32: 0 | O32: 0 | P32: 0 | Q32: 0 | R32: 0 | S32: 0 | T32: 254
A33: ROBSON, Michael | B33: 26 | C33: 25 | D33: 23 | E33: 0 | F33: 0 | G33: 0 | H33: 0 | I33: 0 | J33: 0 | K33: 0 | L33: 0 | M33: 0 | N33: 0 | O33: 0 | P33: 0 | Q33: 0 | R33: 0 | S33: 0 | T33: 74
A34: MCARDLE, Derek | B34: 23 | C34: 21 | D34: 20 | E34: 20 | F34: 20 | G34: 17 | H34: 15 | I34: 13 | J34: 0 | K34: 0 | L34: 0 | M34: 0 | N34: 0 | O34: 0 | P34: 0 | Q34: 0 | R34: 0 | S34: 0 | T34: 149
A35: ELLISON, John | B35: 28 | C35: 27 | D35: 0 | E35: 0 | F35: 0 | G35: 0 | H35: 0 | I35: 0 | J35: 0 | K35: 0 | L35: 0 | M35: 0 | N35: 0 | O35: 0 | P35: 0 | Q35: 0 | R35: 0 | S35: 0 | T35: 55
A36: WYNNE, Mark | B36: 29 | C36: 28 | D36: 0 | E36: 0 | F36: 0 | G36: 0 | H36: 0 | I36: 0 | J36: 0 | K36: 0 | L36: 0 | M36: 0 | N36: 0 | O36: 0 | P36: 0 | Q36: 0 | R36: 0 | S36: 0 | T36: 57
A37: GRIFFITHS, Paul | B37: 25 | C37: 21 | D37: 21 | E37: 16 | F37: 0 | G37: 0 | H37: 0 | I37: 0 | J37: 0 | K37: 0 | L37: 0 | M37: 0 | N37: 0 | O37: 0 | P37: 0 | Q37: 0 | R37: 0 | S37: 0 | T37: 83
A38: MCARDLE, Pete | B38: 18 | C38: 17 | D38: 14 | E38: 12 | F38: 11 | G38: 0 | H38: 0 | I38: 0 | J38: 0 | K38: 0 | L38: 0 | M38: 0 | N38: 0 | O38: 0 | P38: 0 | Q38: 0 | R38: 0 | S38: 0 | T38: 72
A39: HOARE, Daniel | B39: 21 | C39: 19 | D39: 18 | E39: 0 | F39: 0 | G39: 0 | H39: 0 | I39: 0 | J39: 0 | K39: 0 | L39: 0 | M39: 0 | N39: 0 | O39: 0 | P39: 0 | Q39: 0 | R39: 0 | S39: 0 | T39: 58
A40: LESLIE, Steven | B40: 29 | C40: 29 | D40: 28 | E40: 27 | F40: 26 | G40: 26 | H40: 0 | I40: 0 | J40: 0 | K40: 0 | L40: 0 | M40: 0 | N40: 0 | O40: 0 | P40: 0 | Q40: 0 | R40: 0 | S40: 0 | T40: 165
A41: HOLMES, Tony | B41: 19 | C41: 18 | D41: 16 | E41: 16 | F41: 16 | G41: 12 | H41: 11 | I41: 0 | J41: 0 | K41: 0 | L41: 0 | M41: 0 | N41: 0 | O41: 0 | P41: 0 | Q41: 0 | R41: 0 | S41: 0 | T41: 108
A42: BACKINSELL, Jim | B42: 22 | C42: 22 | D42: 20 | E42: 19 | F42: 17 | G42: 16 | H42: 15 | I42: 0 | J42: 0 | K42: 0 | L42: 0 | M42: 0 | N42: 0 | O42: 0 | P42: 0 | Q42: 0 | R42: 0 | S42: 0 | T42: 131
A43: HUGHES, Gareth | B43: 17 | C43: 13 | D43: 12 | E43: 0 | F43: 0 | G43: 0 | H43: 0 | I43: 0 | J43: 0 | K43: 0 | L43: 0 | M43: 0 | N43: 0 | O43: 0 | P43: 0 | Q43: 0 | R43: 0 | S43: 0 | T43: 42
A44: PERRY, Robert | B44: 28 | C44: 27 | D44: 16 | E44: 15 | F44: 14 | G44: 13 | H44: 11 | I44: 10 | J44: 0 | K44: 0 | L44: 0 | M44: 0 | N44: 0 | O44: 0 | P44: 0 | Q44: 0 | R44: 0 | S44: 0 | T44: 134
A45: WADE, David | B45: 21 | C45: 18 | D45: 16 | E45: 14 | F45: 0 | G45: 0 | H45: 0 | I45: 0 | J45: 0 | K45: 0 | L45: 0 | M45: 0 | N45: 0 | O45: 0 | P45: 0 | Q45: 0 | R45: 0 | S45: 0 | T45: 69
A46: RAE, Nick | B46: 15 | C46: 14 | D46: 13 | E46: 12 | F46: 12 | G46: 10 | H46: 10 | I46: 9 | J46: 0 | K46: 0 | L46: 0 | M46: 0 | N46: 0 | O46: 0 | P46: 0 | Q46: 0 | R46: 0 | S46: 0 | T46: 95
A47: GORMAN, Louis | B47: 29 | C47: 29 | D47: 28 | E47: 28 | F47: 0 | G47: 0 | H47: 0 | I47: 0 | J47: 0 | K47: 0 | L47: 0 | M47: 0 | N47: 0 | O47: 0 | P47: 0 | Q47: 0 | R47: 0 | S47: 0 | T47: 114
A48: WARREN, Dominic | B48: 28 | C48: 28 | D48: 26 | E48: 25 | F48: 23 | G48: 23 | H48: 20 | I48: 0 | J48: 0 | K48: 0 | L48: 0 | M48: 0 | N48: 0 | O48: 0 | P48: 0 | Q48: 0 | R48: 0 | S48: 0 | T48: 173
A49: SUMMERFIELD, Leon | B49: 18 | C49: 15 | D49: 14 | E49: 0 | F49: 0 | G49: 0 | H49: 0 | I49: 0 | J49: 0 | K49: 0 | L49: 0 | M49: 0 | N49: 0 | O49: 0 | P49: 0 | Q49: 0 | R49: 0 | S49: 0 | T49: 47
A50: ROUGHLEY, Andrew | B50: 24 | C50: 24 | D50: 24 | E50: 0 | F50: 0 | G50: 0 | H50: 0 | I50: 0 | J50: 0 | K50: 0 | L50: 0 | M50: 0 | N50: 0 | O50: 0 | P50: 0 | Q50: 0 | R50: 0 | S50: 0 | T50: 72
A51: SAUNDERS, Paul | B51: 22 | C51: 19 | D51: 0 | E51: 0 | F51: 0 | G51: 0 | H51: 0 | I51: 0 | J51: 0 | K51: 0 | L51: 0 | M51: 0 | N51: 0 | O51: 0 | P51: 0 | Q51: 0 | R51: 0 | S51: 0 | T51: 41
A52: JOHNSTONE, Paul | B52: 23 | C52: 0 | D52: 0 | E52: 0 | F52: 0 | G52: 0 | H52: 0 | I52: 0 | J52: 0 | K52: 0 | L52: 0 | M52: 0 | N52: 0 | O52: 0 | P52: 0 | Q52: 0 | R52: 0 | S52: 0 | T52: 23
A53: ANDERSON, Daniel | B53: 30 | C53: 27 | D53: 0 | E53: 0 | F53: 0 | G53: 0 | H53: 0 | I53: 0 | J53: 0 | K53: 0 | L53: 0 | M53: 0 | N53: 0 | O53: 0 | P53: 0 | Q53: 0 | R53: 0 | S53: 0 | T53: 57
A54: DAVIES, Nicci | B54: 19 | C54: 18 | D54: 16 | E54: 13 | F54: 13 | G54: 13 | H54: 0 | I54: 0 | J54: 0 | K54: 0 | L54: 0 | M54: 0 | N54: 0 | O54: 0 | P54: 0 | Q54: 0 | R54: 0 | S54: 0 | T54: 92
A55: CUCKSEY, Lesley-Anne | B55: 25 | C55: 25 | D55: 23 | E55: 22 | F55: 21 | G55: 21 | H55: 19 | I55: 19 | J55: 19 | K55: 19 | L55: 18 | M55: 17 | N55: 17 | O55: 17 | P55: 0 | Q55: 0 | R55: 0 | S55: 0 | T55: 248
A56: OPARA, Elaine | B56: 30 | C56: 29 | D56: 29 | E56: 28 | F56: 28 | G56: 28 | H56: 28 | I56: 27 | J56: 27 | K56: 26 | L56: 0 | M56: 0 | N56: 0 | O56: 0 | P56: 0 | Q56: 0 | R56: 0 | S56: 0 | T56: 280
A57: CUTHBERT, Caet | B57: 28 | C57: 22 | D57: 21 | E57: 17 | F57: 17 | G57: 17 | H57: 16 | I57: 15 | J57: 15 | K57: 14 | L57: 14 | M57: 0 | N57: 0 | O57: 0 | P57: 0 | Q57: 0 | R57: 0 | S57: 0 | T57: 196
A58: MCCONNELL, Vicky | B58: 30 | C58: 30 | D58: 29 | E58: 28 | F58: 27 | G58: 27 | H58: 27 | I58: 27 | J58: 23 | K58: 0 | L58: 0 | M58: 0 | N58: 0 | O58: 0 | P58: 0 | Q58: 0 | R58: 0 | S58: 0 | T58: 248
A59: HUNTER, Maria | B59: 24 | C59: 23 | D59: 22 | E59: 22 | F59: 21 | G59: 21 | H59: 21 | I59: 20 | J59: 19 | K59: 0 | L59: 0 | M59: 0 | N59: 0 | O59: 0 | P59: 0 | Q59: 0 | R59: 0 | S59: 0 | T59: 193
A60: BACKINSELL, Kitty | B60: 15 | C60: 0 | D60: 0 | E60: 0 | F60: 0 | G60: 0 | H60: 0 | I60: 0 | J60: 0 | K60: 0 | L60: 0 | M60: 0 | N60: 0 | O60: 0 | P60: 0 | Q60: 0 | R60: 0 | S60: 0 | T60: 15
A61: BARBAT, Julie | B61: 25 | C61: 24 | D61: 24 | E61: 23 | F61: 22 | G61: 20 | H61: 20 | I61: 0 | J61: 0 | K61: 0 | L61: 0 | M61: 0 | N61: 0 | O61: 0 | P61: 0 | Q61: 0 | R61: 0 | S61: 0 | T61: 158
A62: ELLISON, Sandra | B62: 12 | C62: 8 | D62: 0 | E62: 0 | F62: 0 | G62: 0 | H62: 0 | I62: 0 | J62: 0 | K62: 0 | L62: 0 | M62: 0 | N62: 0 | O62: 0 | P62: 0 | Q62: 0 | R62: 0 | S62: 0 | T62: 20
A63: BROWN, Allison | B63: 26 | C63: 25 | D63: 0 | E63: 0 | F63: 0 | G63: 0 | H63: 0 | I63: 0 | J63: 0 | K63: 0 | L63: 0 | M63: 0 | N63: 0 | O63: 0 | P63: 0 | Q63: 0 | R63: 0 | S63: 0 | T63: 51
A64: WYNTER, Serena | B64: 20 | C64: 10 | D64: 10 | E64: 0 | F64: 0 | G64: 0 | H64: 0 | I64: 0 | J64: 0 | K64: 0 | L64: 0 | M64: 0 | N64: 0 | O64: 0 | P64: 0 | Q64: 0 | R64: 0 | S64: 0 | T64: 40
A65: STANLEY, Alexandra | B65: 25 | C65: 24 | D65: 22 | E65: 21 | F65: 21 | G65: 0 | H65: 0 | I65: 0 | J65: 0 | K65: 0 | L65: 0 | M65: 0 | N65: 0 | O65: 0 | P65: 0 | Q65: 0 | R65: 0 | S65: 0 | T65: 113
A66: CUTHBERT, Isabella | B66: 18 | C66: 0 | D66: 0 | E66: 0 | F66: 0 | G66: 0 | H66: 0 | I66: 0 | J66: 0 | K66: 0 | L66: 0 | M66: 0 | N66: 0 | O66: 0 | P66: 0 | Q66: 0 | R66: 0 | S66: 0 | T66: =SUM(B66:M66) -> 18
A67: EDWARDS, Jane | B67: 21 | C67: 15 | D67: 15 | E67: 15 | F67: 12 | G67: 9 | H67: 0 | I67: 0 | J67: 0 | K67: 0 | L67: 0 | M67: 0 | N67: 0 | O67: 0 | P67: 0 | Q67: 0 | R67: 0 | S67: 0 | T67: 87
A68: CLARKE, Isabella | B68: 20 | C68: 0 | D68: 0 | E68: 0 | F68: 0 | G68: 0 | H68: 0 | I68: 0 | J68: 0 | K68: 0 | L68: 0 | M68: 0 | N68: 0 | O68: 0 | P68: 0 | Q68: 0 | R68: 0 | S68: 0 | T68: 20
A69: LAMONT, Sharon | B69: 29 | C69: 24 | D69: 23 | E69: 23 | F69: 22 | G69: 22 | H69: 21 | I69: 19 | J69: 18 | K69: 18 | L69: 18 | M69: 17 | N69: 17 | O69: 16 | P69: 16 | Q69: 16 | R69: 16 | S69: 0 | T69: 254
A70: CRISP, Zoe | B70: 27 | C70: 24 | D70: 24 | E70: 23 | F70: 22 | G70: 21 | H70: 20 | I70: 20 | J70: 20 | K70: 20 | L70: 19 | M70: 19 | N70: 0 | O70: 0 | P70: 0 | Q70: 0 | R70: 0 | S70: 0 | T70: 259
A71: COWDRAY, Kat | B71: 29 | C71: 29 | D71: 28 | E71: 28 | F71: 27 | G71: 27 | H71: 26 | I71: 26 | J71: 26 | K71: 26 | L71: 0 | M71: 0 | N71: 0 | O71: 0 | P71: 0 | Q71: 0 | R71: 0 | S71: 0 | T71: 272
A72: DABNER, Erin | B72: 27 | C72: 27 | D72: 26 | E72: 0 | F72: 0 | G72: 0 | H72: 0 | I72: 0 | J72: 0 | K72: 0 | L72: 0 | M72: 0 | N72: 0 | O72: 0 | P72: 0 | Q72: 0 | R72: 0 | S72: 0 | T72: 80
A73: ANDREWS, Katherine | B73: 26 | C73: 25 | D73: 25 | E73: 23 | F73: 23 | G73: 23 | H73: 22 | I73: 21 | J73: 21 | K73: 20 | L73: 0 | M73: 0 | N73: 0 | O73: 0 | P73: 0 | Q73: 0 | R73: 0 | S73: 0 | T73: 229
A74: THOMPSON, Joniece | B74: 24 | C74: 24 | D74: 24 | E74: 23 | F74: 0 | G74: 0 | H74: 0 | I74: 0 | J74: 0 | K74: 0 | L74: 0 | M74: 0 | N74: 0 | O74: 0 | P74: 0 | Q74: 0 | R74: 0 | S74: 0 | T74: 95
A75: MAGEE, Mary | B75: 16 | C75: 11 | D75: 11 | E75: 0 | F75: 0 | G75: 0 | H75: 0 | I75: 0 | J75: 0 | K75: 0 | L75: 0 | M75: 0 | N75: 0 | O75: 0 | P75: 0 | Q75: 0 | R75: 0 | S75: 0 | T75: 38
A76: BLACKLOCK, Becky | B76: 30 | C76: 30 | D76: 30 | E76: 30 | F76: 30 | G76: 30 | H76: 29 | I76: 29 | J76: 29 | K76: 28 | L76: 28 | M76: 0 | N76: 0 | O76: 0 | P76: 0 | Q76: 0 | R76: 0 | S76: 0 | T76: 323
A77: ALTY, Michele | B77: 30 | C77: 27 | D77: 26 | E77: 26 | F77: 26 | G77: 25 | H77: 25 | I77: 25 | J77: 25 | K77: 24 | L77: 0 | M77: 0 | N77: 0 | O77: 0 | P77: 0 | Q77: 0 | R77: 0 | S77: 0 | T77: 259
A78: CHAPMAN, Nicci | B78: 11 | C78: 0 | D78: 0 | E78: 0 | F78: 0 | G78: 0 | H78: 0 | I78: 0 | J78: 0 | K78: 0 | L78: 0 | M78: 0 | N78: 0 | O78: 0 | P78: 0 | Q78: 0 | R78: 0 | S78: 0 | T78: 11
A79: REES, Mary | B79: 23 | C79: 20 | D79: 18 | E79: 18 | F79: 18 | G79: 17 | H79: 17 | I79: 14 | J79: 10 | K79: 0 | L79: 0 | M79: 0 | N79: 0 | O79: 0 | P79: 0 | Q79: 0 | R79: 0 | S79: 0 | T79: 155
A80: RILEY, Sandra | B80: 18 | C80: 16 | D80: 14 | E80: 12 | F80: 0 | G80: 0 | H80: 0 | I80: 0 | J80: 0 | K80: 0 | L80: 0 | M80: 0 | N80: 0 | O80: 0 | P80: 0 | Q80: 0 | R80: 0 | S80: 0 | T80: 60
A81: KENNY, Anna | B81: 30 | C81: 29 | D81: 29 | E81: 29 | F81: 29 | G81: 29 | H81: 28 | I81: 28 | J81: 28 | K81: 28 | L81: 27 | M81: 0 | N81: 0 | O81: 0 | P81: 0 | Q81: 0 | R81: 0 | S81: 0 | T81: 314
A82: NICHOLSON, Chloe | B82: 30 | C82: 29 | D82: 0 | E82: 0 | F82: 0 | G82: 0 | H82: 0 | I82: 0 | J82: 0 | K82: 0 | L82: 0 | M82: 0 | N82: 0 | O82: 0 | P82: 0 | Q82: 0 | R82: 0 | S82: 0 | T82: 59
A83: KREMLING, Paulena | B83: 30 | C83: 30 | D83: 30 | E83: 30 | F83: 0 | G83: 0 | H83: 0 | I83: 0 | J83: 0 | K83: 0 | L83: 0 | M83: 0 | N83: 0 | O83: 0 | P83: 0 | Q83: 0 | R83: 0 | S83: 0 | T83: 120
A84: MCARD, Jan | B84: 30 | C84: 29 | D84: 28 | E84: 26 | F84: 26 | G84: 26 | H84: 25 | I84: 25 | J84: 24 | K84: 24 | L84: 24 | M84: 0 | N84: 0 | O84: 0 | P84: 0 | Q84: 0 | R84: 0 | S84: 0 | T84: 287
A85: STANSFIELD, Helen-Anne | B85: 29 | C85: 28 | D85: 27 | E85: 26 | F85: 23 | G85: 23 | H85: 19 | I85: 0 | J85: 0 | K85: 0 | L85: 0 | M85: 0 | N85: 0 | O85: 0 | P85: 0 | Q85: 0 | R85: 0 | S85: 0 | T85: 175
A86: REYNOLDS, Sue | B86: 28 | C86: 27 | D86: 27 | E86: 26 | F86: 25 | G86: 25 | H86: 25 | I86: 24 | J86: 24 | K86: 23 | L86: 22 | M86: 22 | N86: 22 | O86: 22 | P86: 0 | Q86: 0 | R86: 0 | S86: 0 | T86: 298
